{"text_format":"1","workbook":"xlsx","n_sheets":1,"sheets":["Sheet1"],"not_rendered":{"charts":1,"images":0,"macros":1,"external_links":0,"defined_names":0,"comments":0,"pivot_tables":0},"unopened":[],"bounds":{"document_bytes":16777216,"sheet_cells":100000,"rows_first":2000,"rows_last":500,"rows_between":2000,"halvings":0,"cell_chars":16384,"cell_head_chars":4096},"cells_cut":0,"cells_raw":0,"read":"whole","date_system":"1900"}

{"sheet":"Sheet1","index":0,"n_rows":65,"n_cols":52,"rows_kept":65,"cut":false,"hidden":false,"merged":[]}
[]
[null,null,"AYT TARİH"]
[]
[null,null,"Deneme"]
[]
[null,"Konular",1,2,3,4,5,6,7,8,9,10,11,12,13,14,15,16,17,18,19,20,21,22,23,24,25,26,27,28,29,30,31,32,33,34,35,36,37,38,39,40,41,42,43,44,45,46,47,48,49,50]
[]
[null,"Tarih ve Zaman",1]
[null,"İnsanlığın İlk Dönemleri",2]
[null,"Orta Çağ’da Dünya",3]
[null,"İlk ve Orta Çağlarda Türk Dünyası",4]
[null,"İslam Medeniyetinin Doğuşu",5]
[null,"Türklerin İslamiyet’i Kabulü ve İlk Türk İslam Devletleri",6]
[null,"Yerleşme ve Devletleşme Sürecinde Selçuklu Türkiyesi"]
[null,"Beylikten Devlete Osmanlı Siyaseti"]
[null,"Devletleşme Sürecinde Savaşçılar ve Askerler"]
[null,"Beylikten Devlete Osmanlı Medeniyeti"]
[null,"Dünya Gücü Osmanlı"]
[null,"Sultan ve Osmanlı Merkez Teşkilatı"]
[null,"Klasik Çağda Osmanlı Toplum Düzeni"]
[null,"Değişen Dünya Dengeleri Karşısında Osmanlı Siyaseti"]
[null,"Değişim Çağında Avrupa ve Osmanlı"]
[null,"Uluslararası İlişkilerde Denge Stratejisi (1774-1914)"]
[null,"Devrimler Çağında Değişen Devlet-Toplum İlişkileri"]
[null,"Sermaye ve Emek"]
[null,"XIX. ve XX. Yüzyılda Değişen Gündelik Hayat"]
[null,"XX. Yüzyıl Başlarında Osmanlı Devleti ve Dünya"]
[null,"Milli Mücadele"]
[null,"Atatürkçülük ve Türk İnkılabı"]
[null,"İki Savaş Arasındaki Dönemde Türkiye ve Dünya"]
[null,"II. Dünya Savaşı Sürecinde Türkiye ve Dünya"]
[null,"II. Dünya Savaşı Sonrasında Türkiye ve Dünya"]
[null,"1. Toplumsal Devrim Çağında Dünya ve Türkiye"]
[null,"XXI. Yüzyılın Eşiğinde Türkiye ve Dünya"]
[]
[]
[]
[]
[null,"Tarih ve Zaman",{"$f":"SUM(C8:AZ8)","v":1}]
[null,"İnsanlığın İlk Dönemleri",{"$f":"SUM(C9:AZ9)","v":2}]
[null,"Orta Çağ’da Dünya",{"$f":"SUM(C10:AZ10)","v":3}]
[null,"İlk ve Orta Çağlarda Türk Dünyası",4]
[null,"İslam Medeniyetinin Doğuşu",5]
[null,"Türklerin İslamiyet’i Kabulü ve İlk Türk İslam Devletleri",6]
[null,"Yerleşme ve Devletleşme Sürecinde Selçuklu Türkiyesi",0]
[null,"Beylikten Devlete Osmanlı Siyaseti",0]
[null,"Devletleşme Sürecinde Savaşçılar ve Askerler",0]
[null,"Beylikten Devlete Osmanlı Medeniyeti",0]
[null,"Dünya Gücü Osmanlı",0]
[null,"Sultan ve Osmanlı Merkez Teşkilatı",0]
[null,"Klasik Çağda Osmanlı Toplum Düzeni",0]
[null,"Değişen Dünya Dengeleri Karşısında Osmanlı Siyaseti",0]
[null,"Değişim Çağında Avrupa ve Osmanlı",0]
[null,"Uluslararası İlişkilerde Denge Stratejisi (1774-1914)",0]
[null,"Devrimler Çağında Değişen Devlet-Toplum İlişkileri",0]
[null,"Sermaye ve Emek",0]
[null,"XIX. ve XX. Yüzyılda Değişen Gündelik Hayat",0]
[null,"XX. Yüzyıl Başlarında Osmanlı Devleti ve Dünya",0]
[null,"Milli Mücadele",0]
[null,"Atatürkçülük ve Türk İnkılabı",0]
[null,"İki Savaş Arasındaki Dönemde Türkiye ve Dünya",0]
[null,"II. Dünya Savaşı Sürecinde Türkiye ve Dünya",0]
[null,"II. Dünya Savaşı Sonrasında Türkiye ve Dünya",0]
[null,"1. Toplumsal Devrim Çağında Dünya ve Türkiye",0]
[null,"XXI. Yüzyılın Eşiğinde Türkiye ve Dünya",0]